Cogmind - Beta 15 @@@ ROGUE MODE // 2025.09.12 @ 15:08:34 Player: Blue Result: Destroyed by Y-45 Defender with Heavy Assault Rifle Performance ------------- Evolutions (2) 1000 Regions Visited (5) 1000 Robots Destroyed (21) 105 Value Destroyed (747) 747 Prototype IDs (23) 460 Alien Tech Used (0) 0 Bonus (447) 447 TOTAL SCORE: 3759 Bonus ------- Follower Combat Kills 147 Aligned with FarCom 300 Cogmind --------- Core Integrity 0/550 Matter 300/300 Energy 99/100 System Corruption 0% Temperature Cool (0) Movement Core (50) Location -8/Materials Parts ------- > --- POWER (2) -------- (None) > --- PROPULSION (2) --- (None) > --- UTILITY (5) ------ Improved Terrain Scanner > --- WEAPON (2) ------- (None) > --- INVENTORY (5) ---- Light Nuclear Core System Shield Medium Laser Guided Plasma Cannon High-powered Shotgun Peak State ------------ > --- POWER ------------ Ion Engine Light Nuclear Core > --- PROPULSION ------- Light Treads Light Treads > --- UTILITY ---------- Heat Sink Heat Sink Small Storage Unit Medium Battery Improved Light Armor Plating > --- WEAPON ----------- Ion Cannon Guided Plasma Cannon > --- INVENTORY -------- Power Shielding Decoy Drone Bay Medium Laser Medium Laser Medium Laser High-powered Shotgun [Rating: 26] Favorites ----------- Power Light Nuclear Core Engine Ion Engine Power Core Light Nuclear Core Propulsion Light Treads Treads Light Treads Utility Heat Sink Device Heat Sink Storage Small Storage Unit Protection Improved Light Armor Plating Weapon Medium Laser Energy Gun Medium Laser Energy Cannon Guided Plasma Cannon Ballistic Gun Assault Rifle Build | -11 -10 -10 -10 -9 -8 ------- Run | Yrd Mat Min Exi Min Mat Slots Evolved 4 | . . . . . 4 Power 1 | . . . . . 1 Propulsion . | . . . . . . Utility 3 | . . . . . 3 Weapon . | . . . . . . Parts Attached 29 | 7 3 1 . 4 14 Power 6 | 1 . 1 . . 4 Engine 4 | 1 . . . . 3 Core 2 | . . 1 . . 1 Reactor . | . . . . . . Propulsion 4 | 2 . . . 1 1 Treads 4 | 2 . . . 1 1 Leg . | . . . . . . Wheel . | . . . . . . Hover . | . . . . . . Flight . | . . . . . . Utility 8 | 1 1 . . . 6 Device 4 | . 1 . . . 3 Storage 2 | 1 . . . . 1 Processor . | . . . . . . Hackware . | . . . . . . Protection 2 | . . . . . 2 Artifact . | . . . . . . Weapon 11 | 3 2 . . 3 3 Energy Gun 6 | 1 2 . . 2 1 Energy Cannon 2 | . . . . 1 1 Ballistic Gun 3 | 2 . . . . 1 Ballistic Cannon . | . . . . . . Launcher . | . . . . . . Special Weapon . | . . . . . . Impact Weapon . | . . . . . . Slashing Weapon . | . . . . . . Piercing Weapon . | . . . . . . Special Melee Weapon . | . . . . . . Unidentified Prototypes . | . . . . . . Parts Lost 6 | . . . . . 6 Power 2 | . . . . . 2 Propulsion 1 | . . . . . 1 Utility 3 | . . . . . 3 Weapon . | . . . . . . Highest Loss Streak 6 | . . . . . 6 To Critical Strikes . | . . . . . . Average Backups 6 | 1 4 8 7 7 5 Power . | . . 1 1 1 . Propulsion . | . . . . . . Utility 2 | . 1 1 2 3 1 Weapon 3 | . 3 5 4 2 3 Tool/Special . | . . . . . . Unused Backups 7 | . . . 1 2 4 Power 1 | . . . . . 1 Propulsion . | . . . . . . Utility 4 | . . . . 1 3 Weapon 2 | . . . 1 1 . Tool/Special . | . . . . . . Average Slot Usage (%) 93 | . 87 100 100 100 78 Engine 5 | . 14 9 . . 8 Core 8 | . . 4 14 14 5 Treads 24 | . 28 28 28 28 13 Device 13 | . 2 14 14 14 14 Storage 13 | . 14 14 14 14 13 Protection 1 | . . . . . 7 Energy Gun 19 | . 3 28 28 23 8 Energy Cannon 3 | . . . . 4 5 Ballistic Gun 1 | . 24 . . . . Peak Build Rating 26 | 6 7 9 10 17 26 Average Rating 11 | 5 6 7 9 12 15 On Entrance 7 | . 6 7 9 10 11 Naked Turns 114 | . . . . . 114 Heaviest Build 38 | 14 15 15 15 23 38 Greatest Support 42 | 40 40 40 40 40 42 Greatest Overweight (x) 3 | 3 . . . . 1 Average Overweight (x) . | . . . . . . Largest Inventory Capacity 8 | 8 8 8 8 8 8 Average Capacity 7 | 7 8 8 8 8 7 Most Carried 8 | 2 8 8 8 8 8 Average Carried 6 | 1 4 7 7 7 5 Final Capacity 8 | 8 8 8 8 8 5 Final Carried 8 | 2 8 8 8 8 5 Class Distribution -------------------- 98% | Mutant Dominant Class ---------------- Mutant | -10/Materials Mutant | -10/Mines Mutant | -10/Exiles Mutant | -9/Mines Mutant | -8/Materials Resources | -11 -10 -10 -10 -9 -8 ----------- Run | Yrd Mat Min Exi Min Mat Matter Collected 608 | 335 . 48 . 40 185 Remotely . | . . . . . . Salvage Created 993 | 105 . . . 163 725 Parts 35 | 4 . . . 6 25 Haulers Intercepted . | . . . . . . Recyclers Shooed . | . . . . . . Parts Field Recycled . | . . . . . . Retrieved Matter . | . . . . . . Parts Self-Destructed . | . . . . . . Prevented . | . . . . . . Kills | -11 -10 -10 -10 -9 -8 ------- Run | Yrd Mat Min Exi Min Mat Combat Hostiles Destroyed 24 | . . . . 11 13 Guns 7 | . . . . 3 4 Cannons 15 | . . . . 8 7 Classes Destroyed 7 | 2 . . . 3 2 Tunneler 1 | 1 . . . . . Recycler 2 | 1 . . . . 1 Watcher 1 | . . . . . 1 Swarmer 3 | . . . . 3 . Grunt 13 | . . . . . 13 Demolisher 1 | . . . . 1 . Assembled 7 | . . . . 7 . Best Kill Streak 6 | 1 . . . 5 6 Combat Bots Only 5 | . . . . 5 5 Max Kills in Single Turn 2 | 1 . . . 2 1 Gunslinging 1 | . . . . 1 . Exploded . | . . . . . . Melee . | . . . . . . Uniques/NPCs Destroyed . | . . . . . . Combat | -11 -10 -10 -10 -9 -8 -------- Run | Yrd Mat Min Exi Min Mat Hostile Shots Fired 155 | . . 1 . 28 126 Missed 40 | . . . . 8 32 Hits 115 | . . 1 . 20 94 Melee 3 | . . . . 2 1 Projectile 112 | . . 1 . 18 93 Critical Strikes 9 | . . . . . 9 Part Disruptions 1 | . . . . 1 . Damage Taken 1798 | . . 23 . 269 1506 Core 607 | . . 12 . 37 558 Absorbed by Shields . | . . . . . . Redirected to Shielding 36 | . . . . . 36 Core Remaining (%) 90 | 100 . . . 80 . Volleys Fired 88 | 9 2 4 . 16 57 Largest 2 | 2 2 2 . 2 2 Hottest 123 | 60 40 100 . 120 123 Shots Fired 149 | 18 4 8 . 22 97 Gun 85 | 18 4 8 . 12 43 Cannon 64 | . . . . 10 54 Launcher . | . . . . . . Special . | . . . . . . Kinetic 28 | 17 4 . . . 7 Thermal 120 | . . 8 . 22 90 Explosive . | . . . . . . Electromagnetic 1 | 1 . . . . . Robot Hit Streak 17 | 4 4 2 . 11 17 Robot Miss Streak 5 | 3 2 3 . 4 5 Penetration Max . | . . . . . . Secondary Targets 2 | . . . . 2 . Max Gunslinging Chain 1 | . . . . 1 . Shots Hit Robots 106 | 11 2 4 . 15 74 Core Hits 44 | 4 . 1 . 12 27 Critical Kills . | . . . . . . Critical Parts Destroyed . | . . . . . . Critical Strikes 1 | . . . . . 1 Burn 1 | . . . . . 1 Melee Attacks . | . . . . . . Impact . | . . . . . . Slashing . | . . . . . . Piercing . | . . . . . . Sneak Attacks . | . . . . . . Combat Hostiles . | . . . . . . Follow-up Attacks . | . . . . . . Damage Inflicted 2378 | 135 22 38 . 419 1764 Guns 786 | 135 22 38 . 65 526 Cannons 1587 | . . . . 354 1233 Explosions . | . . . . . . Melee . | . . . . . . Ramming 5 | . . . . . 5 Kinetic 252 | 122 22 . . . 108 Thermal 2108 | . . 38 . 419 1651 Explosive . | . . . . . . Electromagnetic 13 | 13 . . . . . Impact . | . . . . . . Slashing . | . . . . . . Piercing . | . . . . . . Highest Corruption . | . . . . . . Average Corruption . | . . . . . . Corruption Purged . | . . . . . . Corruption Blocked . | . . . . . . Overload Shots . | . . . . . . Overflow Damage 15 | . . . . 5 10 Projectiles 15 | . . . . 5 10 Explosions . | . . . . . . Melee . | . . . . . . Knockbacks . | . . . . . . Impact . | . . . . . . Kinetic . | . . . . . . Secondary . | . . . . . . Self-Inflicted Damage . | . . . . . . Shots . | . . . . . . Rammed 3 | . . . . . 3 Targets Rammed 3 | . . . . . 3 Kicked . | . . . . . . Crushed . | . . . . . . Highest Temperature 323 | . . 51 . 320 323 Average Temperature 117 | . . 23 . 88 136 Received Heat Transfer 1033 | . . 12 . 58 963 Siege Activations . | . . . . . . Martial Activations . | . . . . . . Shielding Activations . | . . . . . . Robots Disrupted . | . . . . . . Combat Hostiles . | . . . . . . Robots Corrupted . | . . . . . . Combat Hostiles . | . . . . . . Parts Fried . | . . . . . . Impact Corruptions . | . . . . . . Robots Melted 2 | . . . . . 2 Combat Hostiles 2 | . . . . . 2 Parts Melted 8 | . . . . 2 6 Heat Transferred 4491 | . . 111 . 985 3395 Parts Sabotaged . | . . . . . . Parts Stolen . | . . . . . . Parts Stripped . | . . . . . . Power Chain Reactions . | . . . . . . Alert | -11 -10 -10 -10 -9 -8 ------- Run | Yrd Mat Min Exi Min Mat Maximum Alert Level 1 | . . . . . 1 Low Security (%) 94 | 100 100 100 . 100 82 Level 1 5 | . . . . . 17 Level 2 . | . . . . . . Level 3 . | . . . . . . Level 4 . | . . . . . . Level 5 . | . . . . . . High Security . | . . . . . . Max Security . | . . . . . . Peak Influence 325 | 5 7 53 . 70 325 Initial 14 | . . . . . 14 Average 40 | . . 9 . 10 119 Influence Increases 920 | 10 11 106 . 155 638 Destroy 0b10 Robot/C 460 | . . 80 . 120 260 Destroy 0b10 Robot/NC 20 | 10 . . . . 10 Destroy Leader 102 | . . 20 . 30 52 Allied During Kill 11 | . . 6 . 5 . Successful Hack 27 | . 11 . . . 16 Partial Spotted 15 | . . . . . 15 Lose Combat Pursuer 285 | . . . . . 285 Influence Decreases 598 | 10 11 106 . 116 355 Entered New Map 25 | . . . . . 25 Time Decay 500 | 10 11 93 . 116 270 Lost Part 60 | . . . . . 60 Lost Ally 13 | . . 13 . . . Squads Dispatched 7 | . . . . 1 6 Investigation 3 | . . . . 1 2 Extermination . | . . . . . . Reinforcement 1 | . . . . . 1 Assault . | . . . . . . Garrison 3 | . . . . . 3 Intercept . | . . . . . . Searches Triggered . | . . . . . . Construction Impeded . | . . . . . . Haulers Reinforced . | . . . . . . Active Scanning Responses . | . . . . . . Cargo Convoy Interrupts . | . . . . . . Stealth | -11 -10 -10 -10 -9 -8 --------- Run | Yrd Mat Min Exi Min Mat Distress Signals 5 | . . . . . 5 Communications Jammed . | . . . . . . Distress Signals . | . . . . . . Times Spotted 81 | . 4 3 . 25 49 Peak Tracking Total 20 | . 2 2 . 20 11 Tactical Retreats 12 | . . . . 3 9 Traps | -11 -10 -10 -10 -9 -8 ------- Run | Yrd Mat Min Exi Min Mat Traps Triggered 1 | . . . . . 1 Indirectly . | . . . . . . Trap Hack Attempts . | . . . . . . Triggered . | . . . . . . Disarmed . | . . . . . . Reprogrammed . | . . . . . . Reused . | . . . . . . Traps Extracted . | . . . . . . Installed . | . . . . . . Triggered . | . . . . . . Machines | -11 -10 -10 -10 -9 -8 ---------- Run | Yrd Mat Min Exi Min Mat Machines Disabled . | . . . . . . Max in Single Turn . | . . . . . . Machines Repaired . | . . . . . . Machines Dismantled . | . . . . . . Machines Sabotaged . | . . . . . . Overloaded Fab Kills . | . . . . . . Hacking | -11 -10 -10 -10 -9 -8 --------- Run | Yrd Mat Min Exi Min Mat Machines Accessed 12 | . 4 . 2 2 4 Terminals 5 | . 3 . . . 2 Fabricators . | . . . . . . Repair Stations 1 | . . . . . 1 Recycling Units 1 | . 1 . . . . Scanalyzers 1 | . . . . . 1 Garrison Access . | . . . . . . Total Hacks 28 | . 10 . 2 2 14 Successful 18 | . 7 . 2 2 7 Failed 10 | . 3 . . . 7 Catastrophic 1 | . 1 . . . . Database Lockouts . | . . . . . . Manual 8 | . . . 4 . 4 Terminals 16 | . 9 . . . 7 Fabricators . | . . . . . . Repair Stations 4 | . . . . . 4 Recycling Units 1 | . 1 . . . . Scanalyzers 3 | . . . . . 3 Garrison Access . | . . . . . . Terminal Hacks 12 | . 6 . 2 2 2 Record 4 | . 3 . 1 . . Open Door 2 | . . . . 2 . Locate Traps 1 | . . . . . 1 Dispatch Records 1 | . 1 . . . . Assault Status 1 | . 1 . . . . Hauler Manifests 1 | . 1 . . . . Zone Layout 1 | . . . . . 1 Proto ID Catalog 1 | . . . 1 . . Fabricator Hacks . | . . . . . . Repair Station Hacks 2 | . . . . . 2 Scan Component 2 | . . . . . 2 Recycling Unit Hacks 1 | . 1 . . . . Report Inventory 1 | . 1 . . . . Scanalyzer 3 | . . . . . 3 Insert Component 2 | . . . . . 2 Analyze 1 | . . . . . 1 Garrison Access Hacks . | . . . . . . Unauthorized Hacks . | . . . . . . Terminals . | . . . . . . Fabricators . | . . . . . . Repair Stations . | . . . . . . Recycling Units . | . . . . . . Scanalyzers . | . . . . . . Garrison Access . | . . . . . . Data Cores Recovered . | . . . . . . Used . | . . . . . . Hacking Detections 6 | . 2 . . . 4 Full Trace Events 2 | . 1 . . . 1 Feedback Events . | . . . . . . Feedback Blocked . | . . . . . . Robot Schematics Acquired . | . . . . . . Robots Built . | . . . . . . Authchips . | . . . . . . Time . | . . . . . . Total Robot Build Rating . | . . . . . . Part Schematics Acquired 1 | . . . . . 1 Parts Built . | . . . . . . Authchips . | . . . . . . Time . | . . . . . . Total Part Build Rating . | . . . . . . Parts Repaired . | . . . . . . Time . | . . . . . . Parts Recycled . | . . . . . . Recycled Matter . | . . . . . . Retrieved Matter . | . . . . . . Retrieved Components . | . . . . . . Parts Scanalyzed 1 | . . . . . 1 Part Schematics Acquired 1 | . . . . . 1 Parts Damaged . | . . . . . . Bothacking | -11 -10 -10 -10 -9 -8 ------------ Run | Yrd Mat Min Exi Min Mat Used RIF Installer . | . . . . . . Robots Hacked . | . . . . . . Non-combat . | . . . . . . Combat . | . . . . . . Robot Hacks Applied . | . . . . . . Relay Couplers Released . | . . . . . . Fabnet Peak Effective % . | . . . . . . Robots Rewired . | . . . . . . Allies Hacked . | . . . . . . Hacks Repelled . | . . . . . . Allies | -11 -10 -10 -10 -9 -8 -------- Run | Yrd Mat Min Exi Min Mat Total Allies 5 | . . 3 . 2 . Largest Group 3 | . . 3 1 2 2 Highest-Rated Group 48 | . . 40 16 48 48 Highest-Rated Ally 31 | . . 16 16 31 31 Total Orders . | . . . . . . Ally Attacks 49 | . . 24 . 17 8 Total Damage 557 | . . 221 . 272 64 Kills 8 | . . 4 . 4 . Allies Corrupted . | . . . . . . Allies Melted . | . . . . . . Intel | -11 -10 -10 -10 -9 -8 ------- Run | Yrd Mat Min Exi Min Mat Active Infowar (turns) 76 | . . . . . 76 Terrain 76 | . . . . . 76 Robot Analysis Total . | . . . . . . Derelict Logs Recovered 2 | . . 1 . 1 . Drone Launches . | . . . . . . Drone Recoveries . | . . . . . . Exploration | -11 -10 -10 -10 -9 -8 ------------- Run | Yrd Mat Min Exi Min Mat Turns Passed 3801 | 112 215 782 411 1296 985 Spaces Moved 2139 | 49 124 478 256 621 611 Core 366 | 14 . . . . 352 Treads 1773 | 35 124 478 256 621 259 Legs . | . . . . . . Wheels . | . . . . . . Hover . | . . . . . . Flight . | . . . . . . Fastest Speed 50 | 50 160 160 160 160 50 Average Speed 141 | 146 160 160 160 160 97 Slowest Speed 225 | 200 160 160 160 160 225 Overloaded Moves . | . . . . . . Propulsion Burnouts . | . . . . . . Robots Hopped . | . . . . . . Potential Cave-ins . | . . . . . . Cave-ins Triggered . | . . . . . . Exploration Rate (%) 51 | 4 24 97 60 83 38 Regions Visited 5 Branch Regions 3 Pre-discovered Areas 1 | . . 1 . . . Known Exits Taken . | . . . . . . Unknown Exits Taken 5 | 1 1 1 1 1 . Scrap Searched 2 | . . 1 . 1 . Spaces Dug . | . . . . . . Terrain Destroyed . | . . . . . . Melee . | . . . . . . Projectile . | . . . . . . AOE . | . . . . . . Terrain Rammed . | . . . . . . Walls Destroyed . | . . . . . . Machines Disabled . | . . . . . . Actions | -11 -10 -10 -10 -9 -8 --------- Run | Yrd Mat Min Exi Min Mat Total 2757 | 70 138 488 259 903 899 Wait 450 | . . 3 . 257 190 Move 2134 | 48 123 477 255 620 611 Hop . | . . . . . . Pick Up 21 | 1 7 1 2 2 8 Fast Attach 15 | 6 2 1 . . 6 Attach 10 | 2 1 . . 1 6 Detach 5 | 2 1 . . . 2 Swap 12 | 2 . . . 3 7 Drop 19 | . 2 2 2 4 9 Fire 88 | 9 2 4 . 16 57 Melee . | . . . . . . Ram . | . . . . . . Kick . | . . . . . . Crush 3 | . . . . . 3 Escape Stasis . | . . . . . . Rewire . | . . . . . . Trap . | . . . . . . Miscellaneous . | . . . . . . Route ------- -11/Scrapyard -10/Materials (discovered 2 exits: [*Min x2]) -10/Mines (discovered 3 exits: [*Mat x2] / *Exi) -10/Exiles -9/Mines -8/Materials History --------- Turn | Location | Event 23 | -11/Scrapyard | Discovered new exit (range 16) 113 | -11/Scrapyard | Entered Materials 153 | -10/Materials | Discovered new exit (range 14) 307 | -10/Materials | Discovered new exit (range 7) 317 | -10/Materials | Build established: Mutant 328 | -10/Materials | Entered Mines 343 | -10/Mines | Learned 2 Materials zone layouts 538 | -10/Mines | Assisted by bots powering up and referring to "LRC-V3" 565 | -10/Mines | Discovered new exit (range 13) 713 | -10/Mines | Learned location of Storage (-9) 976 | -10/Mines | Discovered new exit (range 12) 1104 | -10/Mines | Deemed a non-threat by the Exiles lab entrance 1104 | -10/Mines | Discovered new exit (range 5) 1110 | -10/Mines | Entered Exiles 1110 | -10/Exiles | Accompanied by 1 ally 1149 | -10/Exiles | Met 8R-AWN 1178 | -10/Exiles | Met EX-HEX 1222 | -10/Exiles | Met EX-BIN 1243 | -10/Exiles | Aligned with FarCom system 1245 | -10/Exiles | Given EX-Vault access code 1283 | -10/Exiles | Opened EX-Vault 1321 | -10/Exiles | Found Gui. Plasma Cannon 1350 | -10/Exiles | Exiles lab attacked by MAIN.C 1502 | -10/Exiles | Discovered new exit (range 14) 1521 | -10/Exiles | Left Exiles lab with Gui. Plasma Cannon 1521 | -10/Exiles | Entered Mines 1521 | -9/Mines | Accompanied by 1 ally 1723 | -9/Mines | Found a damaged Exp. Sensor Array with a note attached 1732 | -9/Mines | Assembled infested the area 1737 | -9/Mines | Assisted by a Guerilla fighting off Assembled 1782 | -9/Mines | Lost 3 allies 2241 | -9/Mines | Found the Drone Emporium 2249 | -9/Mines | Found Prototype Device 2573 | -9/Mines | Learned Materials stockpile data 2613 | -9/Mines | Found a hidden stash of uninstalled traps 2709 | -9/Mines | Discovered new exit (range 10) 2739 | -9/Mines | Met a Derelict shopkeep closing up shop 2817 | -9/Mines | Entered Materials 2817 | -8/Materials | Accompanied by 2 allies 2817 | -8/Materials | Evolved 4 slots: Power x1, Utility x3 2822 | -8/Materials | Led the pair of lost Derelicts to an unsafe place 3176 | -8/Materials | Lost 3 allies 3486 | -8/Materials | Garrison activated, responded to threat 3533 | -8/Materials | Core integrity fell below 50% 3597 | -8/Materials | Lost 6 parts (2p1n3u) 3611 | -8/Materials | Released all parts (7) 3687 | -8/Materials | Core integrity fell below 20% 3802 | -8/Materials | Destroyed by Y-45 Defender with Heavy Assault Rifle Last Messages --------------- K-01 Serf cleans the Scanalyzer. Released Lgt. Nuclear Core. Released Power Shielding. Released Sml. Storage Unit. Released Ion Cannon. Released Adv. Treads. Released Pulse Rifle. Released Imp. Heat Sink. R-06 Scavenger collects Aluminum Leg. Acquired Deuterium Engine. Dropped Deuterium Engine. U-05 Engineer works on Matter Pump. Connecting with Terminal... U-05 Engineer works on Matter Pump. Critical hit (Burn: +37). Acquired 10 matter. Acquired Imp. Terrain Scanner. ALERT: Hostiles spotted, dispatching reinforcements to Terminal M005. Acquired 10 matter. Map ----- +----------------------------------------------------+ | ??????????????????#???????????# # # | | ??????]???????????????????????# # # | | ??????????????????????????????# ################ | | ???????????????????????????#??# | | ???????????????????? ?????????# % | | ??????????????????????????????# % | | ??????????????????????????????# ################ | | ????????????????????"?????????# ##????????????# | | ??????????????????????????????# #?????????????# | | ??????????????????????????????# l#?????????????# | | ??????????????????????? ??????# #?????????????# | | ?????????????????????????????## #???#??######## | | ????????????????????#???????#?# #??????# ## | | ??????????????????????????????# #??????# """ ## | | ??????????????????????????????# ######## """ ## | | ???????????????################ #= # """ ### | | ?????????????? # "S !# """ #?# | | ?????????????? ! g #%""" # ### | | ?????????????? g g+% "" # """ # | | ?????????????????############## %#% # """ # | | ??????????????????????????????# #% # """ + | | ???????????????????????######## ######## """ # | | ???????????????????????# #??????# #! | | ???????????????????????# #??????# [ ### | | ???????????????????????# #??????#######?? | | ???????????????????????+ @ ########??????????????? | | ???????????????????????# #?????????????????????? | | ???????????????????????# #?????????????????????? | | ???????????????????????# #?????????????????????? | | ???????????????????????# Y#?????????????????????? | | ???????????????????????# #?Y???????????????????? | | ???????????????????????# #?????????????????????? | | ???????????????????????+ +?????????????????????? | | ???????????????????????# #?????????????????????? | | ???????????????????????# #?????????????????????? | | ???????????????????????# #?????????????????????? | | ??????????????Y????????# #?????????????????????? | | ???????????????????????# #?????????????????????? | | ???????????????????????# ??????????????????????? | | ???????????????????????? ??????????????????????? | | ???????????????????????? ??????????????????????? | | ?????????????????????????????????????????????????? | | ?????????????????????????????????????????????????? | | ?????????????????????????????????????????????????? | | ?????????????????????????????????????????????????? | | ?????????????????????????????????????????????????? | | ?????????????????????????????????????????????????? | | ?????????????????????????????????????????????????? | | ?????????????????????????????????????????????????? | | ?????????????????????????????????????????????????? | +----------------------------------------------------+ Best States ------------- Heat Dissipation 51 Energy Generation 19 Energy Capacity 460 Matter Stores 300 Matter Capacity 300 Sight Range 16 Terrain Scan Range 16 Terrain Scan Density 10 Armor Coverage 150 Power Shielding 33 Evasion (%) 50 Recoil Reduction 2 Item Schematics ----------------- Adv. Treads | -8/Materials | Scanalyzed Robot Schematics ------------------ None Fabricated ------------ Nothing Repaired ---------- Nothing Alien Tech Used ----------------- None Achievements -------------- Hunted I Survived The Infestation Challenges ------------ None Game ------ Seed CentriumChargeRipper Manual? 0 Play Time 01:09:16 Cumulative 28.2 hours Start 2025.09.12 @ 13:43:04 End 2025.09.12 @ 15:08:34 Sessions 1 Manual Loads 0 Difficulty Rogue Special Mode None Game No. 19 Rogue 19 Adventurer 0 Explorer 0 Win Type - Total 0 Types 0/0/0/0/0/0/0/0/0/0 Lore% 10 Gallery% 22 Achievement% 21 Wizard Run 0 Options --------- Layout 1 ASCII 0 Keyboard 1 Movement Arrows Keybinds 0 Fullscreen 1 Font 24/Smallcaps Map View 50x35 Zoom Use 0% Tactical HUD 0 Map Filters NONE Filters NONE Steam 1 RUN: aa742a2d-6a2a-4108-8e3b-d7313be9422e